bitfinex/quotes_BTCUSD_20241222
["timestamp","ask_amount","ask_price","bid_price","bid_amount"]
[1734906180652,0.210318,95094.0,95072.0,0.15]
[1734906180859,0.420636,95094.0,95076.0,0.210356]
[1734906181051,0.421636,95094.0,95076.0,0.210356]
[1734906181683,0.002,95094.0,95081.0,0.210346]
[1734906181879,0.21032,95093.0,95079.0,0.210349]
[1734906184420,0.21032,95093.0,95080.0,8.55e-05]
[1734906184587,0.21232,95093.0,95080.0,8.55e-05]
[1734906185542,0.002,95093.0,95091.0,0.1]
[1734906185744,0.0817,95141.0,95099.0,0.1]
[1734906185946,0.0817,95141.0,95092.0,0.36744695]
[1734906185947,0.0817,95141.0,95111.0,0.21028]
[1734906186282,0.0817,95141.0,95111.0,0.323631]
[1734906186491,0.0817,95141.0,95111.0,0.5249394]
[1734906187318,0.000171,95143.0,95111.0,1.3069394]
[1734906187548,0.000171,95143.0,95111.0,1.5569394]
[1734906187781,0.000171,95143.0,95125.0,0.846249]
[1734906187956,0.000171,95143.0,95125.0,1.4441474]
[1734906188169,0.000171,95143.0,95125.0,0.9081474]
[1734906188378,0.000171,95143.0,95125.0,0.9848534]
[1734906188580,0.000171,95143.0,95141.0,0.310214]
[1734906188782,0.00070884,95142.0,95141.0,0.5615224]
[1734906189557,0.00070884,95142.0,95141.0,0.58304895]
[1734906190086,0.00070884,95142.0,95141.0,0.48304895]
[1734906190261,0.00070884,95142.0,95141.0,0.58304895]
[1734906190718,0.00070884,95142.0,95141.0,0.48304895]
[1734906190921,0.00070884,95142.0,95141.0,0.58304895]
[1734906191341,0.00070884,95142.0,95141.0,0.59237658]
[1734906191714,0.00770884,95142.0,95141.0,0.59337658]
[1734906192122,0.00070884,95142.0,95141.0,0.59237658]
[1734906192295,0.00770884,95142.0,95141.0,0.59337658]
[1734906192619,0.18133384,95179.0,95164.0,0.210163]
[1734906192758,0.18149519,95179.0,95164.0,0.210163]
[1734906193375,0.00016135,95179.0,95164.0,0.210163]
[1734906193917,0.00016135,95179.0,95171.0,0.15]
[1734906194122,0.00016135,95179.0,95172.0,0.210145]
[1734906194323,0.00016135,95179.0,95171.0,0.15]
[1734906195082,0.00016135,95179.0,95166.0,0.210157]
[1734906195296,0.210176,95159.0,95141.0,0.1023084]
[1734906195518,0.210183,95155.0,95141.0,0.001]
[1734906195638,0.1013084,95158.0,95132.0,0.210233]
[1734906195845,0.1013084,95158.0,95135.0,0.09391288]
[1734906195846,0.210205,95145.0,95135.0,0.09391288]
[1734906196092,0.210219,95139.0,95135.0,0.09391288]
[1734906196776,0.0805,95145.0,95135.0,0.09391288]
[1734906196977,0.0001712,95142.0,95135.0,0.09391288]
[1734906197499,0.00033246,95142.0,95133.0,0.210231]
[1734906198303,0.00033246,95142.0,95135.0,0.005]
[1734906198506,0.00033246,95142.0,95129.0,0.21024]
[1734906198507,0.00033246,95142.0,95130.0,0.15]
[1734906198734,0.00033246,95142.0,95127.0,0.01162761]
[1734906198890,0.00133246,95142.0,95133.0,0.006]
[1734906199095,0.210226,95136.0,95127.0,0.01162761]
[1734906199554,0.210226,95136.0,95135.0,0.003]
[1734906199757,0.00033246,95142.0,95131.0,0.210235]
[1734906200160,0.00133246,95142.0,95133.0,0.007]
[1734906201283,0.00133246,95142.0,95132.0,0.15]
[1734906201284,0.00033246,95142.0,95132.0,0.15]
[1734906201625,0.00033246,95142.0,95135.0,0.004]
[1734906201831,0.00033246,95142.0,95132.0,0.15]
[1734906202072,0.00033246,95142.0,95128.0,0.210243]
[1734906202287,0.00033246,95142.0,95133.0,0.002]
[1734906202669,0.00033246,95142.0,95129.0,0.15]
[1734906203529,0.00033246,95142.0,95135.0,0.001]
[1734906204293,0.210214,95141.0,95135.0,0.001]
[1734906204695,0.210214,95141.0,95127.0,0.01162761]
[1734906204892,0.210214,95141.0,95129.0,0.001]
[1734906205118,0.210214,95141.0,95126.0,0.03562761]
[1734906205599,0.210214,95141.0,95135.0,0.002]
[1734906205798,0.210214,95141.0,95115.0,0.1]
[1734906206376,0.210214,95141.0,95129.0,0.212239]
[1734906207077,0.00033246,95142.0,95130.0,0.15]
[1734906208336,0.210236,95131.0,95129.0,8.55e-05]
[1734906208915,0.210236,95131.0,95130.0,0.001]
[1734906209311,0.210236,95131.0,95129.0,8.55e-05]
[1734906209512,0.210236,95131.0,95129.0,0.0010855]
[1734906210107,0.10262237,95130.0,95129.0,8.55e-05]
[1734906210321,0.18202237,95130.0,95129.0,8.55e-05]
[1734906212029,0.023,95128.0,95100.0,0.09391288]
[1734906212204,0.023,95128.0,95089.0,0.09391288]
[1734906212205,0.210301,95102.0,95089.0,0.09391288]
[1734906212647,0.500002,95102.0,95089.0,0.09391288]
[1734906213400,0.500002,95102.0,95089.0,0.09445072]
[1734906213759,0.0794,95102.0,95091.0,0.15]
[1734906214526,0.289672,95115.0,95091.0,0.15]
[1734906214733,0.289672,95115.0,95100.0,0.210304]
[1734906215095,0.289672,95115.0,95092.0,0.210322]
[1734906215334,0.289672,95115.0,95100.0,0.210304]
[1734906216059,0.1,95135.0,95100.0,0.210304]
[1734906216060,0.0794,95135.0,95102.0,0.15]
[1734906216314,0.0794,95148.0,95120.0,0.12751303]
[1734906216519,0.0794,95148.0,95139.0,0.210218]
[1734906216723,0.0794,95148.0,95141.0,0.360214]
[1734906216926,0.0791,95161.0,95141.0,0.360214]
[1734906217625,0.00033246,95142.0,95141.0,0.360214]
[1734906219211,0.00033246,95142.0,95141.0,0.37161525]
[1734906219840,0.00033246,95142.0,95141.0,0.37961525]
[1734906220247,0.00033246,95142.0,95141.0,0.37161525]
[1734906220577,0.00433246,95142.0,95141.0,0.37261525]
[1734906222378,0.00433246,95142.0,95141.0,0.01140125]
[1734906222379,0.00033246,95142.0,95141.0,0.01140125]
[1734906222583,0.00133246,95142.0,95141.0,0.02040125]
[1734906222729,0.00133246,95142.0,95141.0,0.009]
[1734906222929,0.00033246,95142.0,95139.0,0.01116822]
[1734906223242,0.00633246,95142.0,95139.0,0.5217434]
[1734906223443,0.000171,95177.0,95139.0,0.5217434]
[1734906223444,0.000171,95177.0,95164.0,0.1]
[1734906223642,0.000171,95177.0,95176.0,0.360137]
[1734906223763,0.00033223,95177.0,95176.0,0.4614454]
[1734906224997,0.00033223,95177.0,95176.0,0.3344454]
[1734906225202,0.00033223,95177.0,95176.0,0.2513084]
[1734906225555,0.00033223,95177.0,95176.0,0.39237061]
[1734906225685,0.00033223,95177.0,95176.0,0.60250761]
[1734906225902,0.0766,95207.0,95189.0,0.360108]
[1734906227021,0.0766,95207.0,95181.0,0.01120876]
[1734906227022,0.00131297,95206.0,95181.0,0.01120876]
[1734906227188,0.00131297,95206.0,95176.0,0.15]
[1734906227388,0.00131297,95206.0,95177.0,0.210134]
[1734906227389,0.210092,95197.0,95177.0,0.210134]
[1734906227657,0.00131314,95194.0,95178.0,0.15]
[1734906228161,0.1013084,95189.0,95175.0,0.01117]
[1734906228357,0.12311327,95188.0,95175.0,0.01117]
[1734906228513,0.3114204,95187.0,95168.0,0.210154]
[1734906228718,0.210117,95185.0,95167.0,0.09390301]
[1734906229124,0.00504032,95184.0,95167.0,0.01182709]
[1734906229572,0.00504032,95184.0,95167.0,0.16182709]
[1734906229847,0.00504032,95184.0,95169.0,0.15]
[1734906231025,0.00504032,95184.0,95167.0,0.16182709]
[1734906231235,0.00504032,95184.0,95168.0,0.210154]
[1734906231435,0.00504032,95184.0,95169.0,0.15]
[1734906231831,0.00521132,95184.0,95169.0,0.15]
[1734906232037,0.210121,95183.0,95169.0,0.155]
[1734906232233,0.21515817,95183.0,95169.0,0.155]
[1734906232681,0.21515817,95183.0,95169.0,0.005]
[1734906232884,0.21515817,95183.0,95167.0,0.16191259]
[1734906233104,0.21615817,95183.0,95169.0,0.006]
[1734906233510,0.21515817,95183.0,95167.0,0.16191259]
[1734906233686,0.21515817,95183.0,95169.0,0.005]
[1734906234408,0.42527917,95183.0,95169.0,0.005]
[1734906234711,0.210125,95181.0,95169.0,0.005]
[1734906234864,0.00131329,95180.0,95169.0,0.005]
[1734906235075,0.21013,95179.0,95167.0,0.01191259]
[1734906235483,0.21013,95179.0,95169.0,0.004]
[1734906235710,0.21013,95179.0,95164.0,0.03491259]
[1734906235859,0.31780263,95178.0,95164.0,0.0112295]
[1734906236092,0.31780263,95178.0,95169.0,0.004]
[1734906236294,0.52793463,95178.0,95169.0,0.004]
[1734906236858,0.31780263,95178.0,95160.0,0.210172]
[1734906237815,0.210142,95174.0,95159.0,0.15]
[1734906238023,0.210142,95174.0,95151.0,0.09374178]
[1734906238024,0.21015,95170.0,95151.0,0.09374178]
[1734906238220,0.21015,95170.0,95153.0,0.210187]
[1734906238221,0.210154,95168.0,95153.0,0.210187]
[1734906238404,0.210154,95168.0,95149.0,0.30393678]
[1734906238405,0.210154,95168.0,95150.0,0.210194]
[1734906238606,0.00502522,95167.0,95166.0,0.210159]
[1734906238809,0.00502522,95167.0,95166.0,0.3114674]
[1734906239013,0.00016114,95179.0,95178.0,0.210132]
[1734906240252,0.00016114,95179.0,95166.0,0.1013084]
[1734906240408,0.00016114,95179.0,95178.0,0.002]
[1734906241054,0.10146954,95179.0,95178.0,0.002]
[1734906241710,0.10146954,95179.0,95168.0,0.01131658]
[1734906241950,0.210144,95173.0,95168.0,0.01131658]
[1734906242122,0.210144,95173.0,95160.0,0.15]
[1734906242482,0.00131341,95172.0,95160.0,0.15]
[1734906242685,0.21017,95161.0,95159.0,0.09374178]
[1734906242890,0.0457,95171.0,95159.0,0.09374178]
[1734906243215,0.210164,95164.0,95160.0,0.001]
[1734906243422,0.420328,95164.0,95160.0,0.001]
[1734906243622,0.210165,95163.0,95148.0,0.210196]
[1734906244324,0.0457,95171.0,95148.0,0.01113983]
[1734906244536,0.0457,95171.0,95139.0,0.14106221]
[1734906244537,0.0457,95171.0,95152.0,0.15]
[1734906244726,0.0457,95171.0,95164.0,0.210162]
[1734906244895,0.0457,95171.0,95161.0,0.210168]
[1734906245100,0.0457,95171.0,95159.0,0.15]
[1734906245307,0.0457,95171.0,95159.0,0.365174]
[1734906245735,0.0457,95171.0,95159.0,0.360174]
[1734906245933,0.0457,95171.0,95161.0,0.002]
[1734906246419,0.0457,95171.0,95159.0,0.360174]
[1734906246651,0.0457,95171.0,95159.0,0.362174]
[1734906246811,0.21015,95170.0,95159.0,0.362174]
[1734906247061,0.21015,95170.0,95159.0,0.360174]
[1734906247440,0.21015,95170.0,95161.0,0.002]
[1734906248637,0.21015,95170.0,95158.0,0.15]
[1734906249051,0.21015,95170.0,95159.0,0.210174]
[1734906249227,0.21015,95170.0,95160.0,0.15]
[1734906249645,0.0457,95171.0,95161.0,0.21017]
[1734906250027,0.21015,95170.0,95160.0,0.15]
[1734906250226,0.21015,95170.0,95159.0,0.210174]
[1734906251743,0.21015,95170.0,95160.0,0.002]
[1734906252100,0.21015,95170.0,95159.0,0.210174]
[1734906252442,0.21015,95170.0,95159.0,0.212174]
[1734906252665,0.21015,95170.0,95159.0,0.210174]
[1734906253041,0.21015,95170.0,95160.0,0.002]
[1734906253470,0.21015,95170.0,95159.0,0.210174]
[1734906253927,0.21015,95170.0,95159.0,0.212174]
[1734906254136,0.0457,95171.0,95159.0,0.212174]
[1734906254895,0.21015,95170.0,95159.0,0.212174]
[1734906255097,0.21015,95170.0,95158.0,0.01156047]
[1734906255321,0.21015,95170.0,95160.0,0.002]
[1734906255882,0.210159,95166.0,95160.0,0.002]
[1734906256110,0.078,95164.0,95142.0,0.09374178]
[1734906256316,0.210209,95143.0,95142.0,0.09374178]
[1734906256732,0.3115174,95143.0,95142.0,0.09374178]
[1734906256932,0.0774,95142.0,95139.0,0.14106221]
[1734906257181,0.210216,95140.0,95139.0,0.14106221]
[1734906257315,0.3115244,95140.0,95139.0,0.14106221]
[1734906258848,0.3115244,95140.0,95129.0,8.55e-05]
[1734906258849,0.210238,95130.0,95129.0,8.55e-05]
[1734906259043,0.3115464,95130.0,95129.0,0.00062334]
[1734906260178,0.3889464,95130.0,95129.0,0.00062334]
[1734906261808,0.3949464,95130.0,95129.0,0.00162334]
[1734906265144,0.210278,95112.0,95097.0,0.21031]
[1734906265271,0.210278,95112.0,95098.0,0.00016126]
[1734906265893,0.210288,95108.0,95098.0,0.00016126]
[1734906266836,0.210278,95112.0,95099.0,0.210307]
[1734906267120,0.1787084,95130.0,95100.0,0.1013084]
[1734906267357,0.23080634,95182.0,95114.0,0.1]
[1734906267358,0.122773,95156.0,95114.0,0.1]
[1734906267545,0.210156,95168.0,95131.0,0.15]
[1734906267822,0.1820084,95171.0,95133.0,0.15]
[1734906267980,0.210161,95166.0,95152.0,0.210187]
[1734906268177,0.000171,95179.0,95157.0,0.1]
[1734906268388,0.000171,95179.0,95175.0,0.210137]
[1734906268936,0.00070874,95179.0,95177.0,0.210134]
[1734906270254,0.00070874,95179.0,95176.0,0.15]
[1734906271487,0.00070874,95179.0,95177.0,0.005]
[1734906271784,0.00070874,95179.0,95176.0,0.16409501]
[1734906271943,0.00070874,95179.0,95176.0,0.16909501]
[1734906272401,0.00070874,95179.0,95176.0,0.16409501]
[1734906272729,0.00070874,95179.0,95177.0,0.005]
[1734906273158,0.00070874,95179.0,95160.0,0.15]
[1734906273491,0.00070874,95179.0,95157.0,0.15]
[1734906273902,0.210157,95167.0,95157.0,0.15]
[1734906274224,0.210147,95172.0,95152.0,0.15]
[1734906274370,0.0792,95177.0,95156.0,0.01439008]
[1734906274576,0.420332,95163.0,95148.0,0.09399429]
[1734906274780,0.420332,95163.0,95148.0,0.19530269]
[1734906274979,0.210166,95163.0,95148.0,0.40549869]
[1734906275186,0.210166,95163.0,95148.0,0.22409572]
[1734906275706,0.210175,95159.0,95144.0,0.210205]
[1734906276134,0.210175,95159.0,95145.0,0.15]
[1734906278188,0.42035,95159.0,95145.0,0.15]
[1734906278663,0.42035,95159.0,95144.0,0.2280871]
[1734906278664,0.210137,95176.0,95144.0,0.0178821]
[1734906278872,0.210183,95156.0,95143.0,0.15]
[1734906279068,0.210183,95156.0,95148.0,0.003]
[1734906279629,0.1013084,95175.0,95143.0,0.15]
[1734906279862,0.210193,95151.0,95143.0,0.15]
[1734906280032,0.210193,95151.0,95137.0,0.15]
[1734906280334,0.210143,95173.0,95133.0,0.15]
[1734906280570,0.19126067,95170.0,95136.0,0.01819582]
[1734906280687,0.210218,95140.0,95126.0,0.083247]
[1734906280910,0.420436,95140.0,95119.0,0.02080081]
[1734906281312,0.420436,95140.0,95118.0,0.1591992]
[1734906281550,0.210172,95160.0,95145.0,8.55e-05]
[1734906281785,0.210203,95146.0,95145.0,8.55e-05]
[1734906282931,0.211203,95146.0,95145.0,0.0090855]
[1734906283107,0.3914114,95146.0,95145.0,0.0090855]
[1734906283516,0.42992819,95146.0,95145.0,0.0090855]
[1734906283717,0.4134114,95146.0,95145.0,8.55e-05]
[1734906284142,0.4144114,95146.0,95145.0,8.55e-05]
[1734906285149,0.3914114,95146.0,95145.0,8.55e-05]
[1734906285349,0.3904114,95146.0,95145.0,8.55e-05]
[1734906285753,0.3964114,95146.0,95145.0,8.55e-05]
[1734906286415,0.3904114,95146.0,95145.0,8.55e-05]
[1734906286801,0.3914114,95146.0,95145.0,8.55e-05]
[1734906288941,0.3904114,95146.0,95145.0,8.55e-05]
[1734906289602,0.3934114,95146.0,95145.0,8.55e-05]
[1734906289799,0.3904114,95146.0,95145.0,8.55e-05]
[1734906290200,0.3964114,95146.0,95145.0,8.55e-05]
[1734906296518,0.3904114,95146.0,95145.0,8.55e-05]
[1734906296736,0.3964114,95146.0,95145.0,8.55e-05]
[1734906296954,0.3904114,95146.0,95145.0,8.55e-05]
[1734906297398,0.3944114,95146.0,95145.0,8.55e-05]
[1734906297843,0.004,95146.0,95145.0,8.55e-05]
[1734906299274,0.004,95146.0,95145.0,0.01762463]
[1734906300098,0.210169,95162.0,95145.0,0.01762463]
[1734906300505,0.006,95146.0,95145.0,0.01762463]
[1734906300707,0.210169,95162.0,95146.0,0.210203]
[1734906301042,0.210176,95159.0,95145.0,0.02462463]
[1734906301293,0.1013084,95161.0,95145.0,0.02462463]
[1734906301294,0.210176,95158.0,95145.0,0.02462463]
[1734906301456,0.210176,95158.0,95145.0,0.01762463]
[1734906301457,0.210191,95152.0,95145.0,0.01762463]
[1734906301800,0.210202,95147.0,95145.0,0.01762463]
[1734906302022,0.210202,95147.0,95145.0,8.55e-05]
[1734906302445,0.1013084,95151.0,95145.0,8.55e-05]
[1734906302649,0.001,95146.0,95145.0,0.0070855]
[1734906303030,0.210203,95146.0,95145.0,8.55e-05]
[1734906303423,0.210203,95146.0,95145.0,0.0060855]
[1734906303876,0.210203,95146.0,95145.0,8.55e-05]
[1734906303877,0.3115114,95146.0,95145.0,8.55e-05]
[1734906304052,0.3115114,95146.0,95145.0,0.0040855]
[1734906304475,0.3115114,95146.0,95145.0,8.55e-05]
[1734906305091,0.3115114,95146.0,95123.0,0.15]
[1734906305092,0.210225,95136.0,95124.0,0.210251]
[1734906305466,0.210225,95136.0,95123.0,0.01813114]
[1734906305697,0.210225,95136.0,95124.0,0.210251]
[1734906305893,0.1013084,95135.0,95122.0,0.01796471]
[1734906306091,0.210249,95126.0,95114.0,0.2103585]
[1734906306358,0.210256,95122.0,95114.0,0.00024676]
[1734906306899,0.210254,95124.0,95114.0,0.00024676]
[1734906307314,0.210246,95127.0,95114.0,0.01795827]
[1734906307513,0.210246,95127.0,95114.0,0.00024676]
[1734906307766,0.210256,95122.0,95114.0,0.00024676]
[1734906307977,0.210256,95122.0,95114.0,0.00524676]
[1734906308208,0.210247,95126.0,95114.0,0.00524676]
[1734906309158,0.210247,95126.0,95114.0,0.00024676]
[1734906309733,0.210247,95126.0,95114.0,0.00224676]
[1734906309939,0.210257,95122.0,95114.0,0.00024676]
[1734906310114,0.210231,95133.0,95114.0,0.00324676]
[1734906310412,0.10262242,95132.0,95114.0,0.00324676]
[1734906310843,0.210261,95120.0,95114.0,0.00324676]
[1734906311062,0.210238,95130.0,95114.0,0.00024676]
[1734906311286,0.210263,95119.0,95114.0,0.00024676]
[1734906313335,0.210263,95119.0,95114.0,0.00224676]
[1734906316286,0.210256,95123.0,95114.0,0.00224676]
[1734906316528,0.210263,95119.0,95114.0,0.00224676]
[1734906317074,0.210263,95119.0,95114.0,0.00024676]
[1734906319653,0.210263,95119.0,95114.0,0.00224676]
[1734906319785,0.210256,95123.0,95114.0,0.00224676]
[1734906321603,0.210246,95127.0,95114.0,0.00224676]
[1734906321796,0.31286951,95126.0,95114.0,0.00224676]
[1734906322001,0.3115554,95126.0,95114.0,0.00024676]
[1734906322123,0.210251,95124.0,95114.0,0.00024676]
[1734906322837,0.1013084,95126.0,95114.0,0.00024676]
[1734906323035,0.10262251,95126.0,95114.0,0.00024676]
[1734906323535,0.210249,95125.0,95114.0,0.00024676]
[1734906323735,0.3115574,95125.0,95114.0,0.00024676]
[1734906324762,0.21156511,95124.0,95114.0,0.00024676]
[1734906324962,0.210251,95124.0,95114.0,0.00024676]
[1734906325643,0.1013084,95125.0,95114.0,0.00024676]
[1734906326066,0.001,95124.0,95114.0,0.00024676]
[1734906326224,0.1013084,95125.0,95114.0,0.00024676]
[1734906327465,0.1013084,95125.0,95115.0,0.210271]
[1734906327660,0.1013084,95125.0,95114.0,0.00024676]
[1734906328258,0.1013084,95125.0,95114.0,0.00124676]
[1734906328458,0.1013084,95125.0,95114.0,0.00024676]
[1734906328659,0.1014794,95125.0,95114.0,0.00024676]
[1734906329308,0.1014794,95125.0,95114.0,0.00124676]
[1734906331983,0.210251,95124.0,95114.0,0.00124676]
[1734906333136,0.210251,95124.0,95114.0,0.00024676]
[1734906333356,0.1014794,95125.0,95114.0,0.00024676]
[1734906333631,0.1014794,95125.0,95114.0,0.00124676]
[1734906335326,0.1014794,95125.0,95114.0,0.00024676]
[1734906335527,0.31287351,95124.0,95114.0,0.00124676]
[1734906335723,0.3115594,95124.0,95114.0,0.00124676]
[1734906336421,0.3115594,95124.0,95114.0,0.00024676]
[1734906336621,0.00131415,95123.0,95114.0,0.00124676]
[1734906336824,0.1013084,95122.0,95114.0,0.00124676]
[1734906338425,0.1013084,95122.0,95114.0,0.00024676]
[1734906339274,0.1013084,95122.0,95114.0,0.00224676]
[1734906339728,0.1013084,95122.0,95114.0,0.00024676]
[1734906339875,0.1013084,95122.0,95114.0,0.00224676]
[1734906340773,0.00131416,95121.0,95114.0,0.00224676]
[1734906341177,0.21026,95120.0,95114.0,0.00224676]
[1734906341386,0.210265,95118.0,95114.0,0.00224676]
[1734906341606,0.210269,95116.0,95114.0,0.00224676]
[1734906341802,0.10262264,95115.0,95114.0,0.00224676]
[1734906342154,0.10262264,95115.0,95114.0,0.00024676]
[1734906344092,0.1024317,95115.0,95114.0,0.00024676]
[1734906344255,0.1024317,95115.0,95114.0,0.00124676]
[1734906345062,0.1024317,95115.0,95094.0,0.10487992]
[1734906345255,0.210286,95109.0,95094.0,0.00016142]
[1734906345458,0.210289,95107.0,95094.0,0.21047842]
[1734906345663,0.00112341,95106.0,95094.0,0.00016142]
[1734906345883,0.210298,95104.0,95094.0,0.02047359]
[1734906346091,0.00112346,95103.0,95094.0,0.02047359]
[1734906346390,0.00112346,95103.0,95094.0,0.00016142]
[1734906346611,0.3116084,95102.0,95094.0,0.00016142]
[1734906346842,0.21031,95098.0,95094.0,0.00016142]
[1734906346987,0.00112355,95097.0,95094.0,0.02430012]
[1734906347187,0.00112355,95100.0,95094.0,0.00016142]
[1734906347419,0.1311,95095.0,95094.0,0.00016142]
[1734906347763,0.25442307,95095.0,95094.0,0.00216142]
[1734906347979,0.2532994,95095.0,95094.0,0.00216142]
[1734906348399,0.4762994,95095.0,95094.0,0.00216142]
[1734906348936,0.6262994,95095.0,95094.0,0.00016142]
[1734906349335,0.6262994,95095.0,95094.0,0.00416142]
[1734906349707,0.6262994,95095.0,95094.0,0.00016142]
[1734906350119,0.1,95092.0,95053.0,0.08408212]
[1734906350324,0.12746767,95080.0,95059.0,0.00016148]
[1734906350552,0.1026233,95079.0,95059.0,0.00016148]
[1734906350751,0.210393,95060.0,95059.0,0.00016148]
[1734906350961,0.3117014,95060.0,95059.0,0.00016148]
[1734906352084,0.3908014,95060.0,95059.0,0.00016148]
[1734906353105,0.3908014,95060.0,95059.0,0.00216148]
[1734906353359,0.3908014,95060.0,95059.0,0.00016148]
[1734906353911,0.3988014,95060.0,95059.0,0.00116148]
[1734906354103,0.83614875,95060.0,95059.0,0.00116148]
[1734906354347,0.83614875,95060.0,95052.0,8.54e-05]
[1734906354348,0.210408,95053.0,95052.0,8.54e-05]
[1734906354543,0.4617164,95053.0,95052.0,8.54e-05]
[1734906354745,0.5617164,95053.0,95052.0,8.54e-05]
[1734906355359,0.6847164,95053.0,95052.0,8.54e-05]
[1734906355575,0.1,95048.0,95010.0,0.01095264]
[1734906355775,0.29055,95034.0,95010.0,0.01095264]
[1734906355976,0.3918584,95034.0,95018.0,0.01956537]
[1734906356781,0.3918584,95034.0,95033.0,0.0010856]
[1734906357224,0.3918584,95034.0,95033.0,8.56e-05]
[1734906357578,0.1013084,95034.0,95033.0,8.56e-05]
[1734906357773,0.00131536,95054.0,95033.0,8.56e-05]
[1734906357982,0.1013084,95054.0,95050.0,0.210414]
[1734906358181,0.1013084,95054.0,95047.0,0.21042]
[1734906358653,0.1013084,95054.0,95045.0,0.210424]
[1734906358851,0.1013084,95054.0,95039.0,0.210439]
[1734906359368,0.0013151,95053.0,95039.0,0.210439]
[1734906359969,0.0013151,95053.0,95034.0,0.210449]
[1734906359970,0.1026235,95053.0,95035.0,0.15]
[1734906360219,0.1026235,95053.0,95034.0,0.210449]
[1734906360220,0.1013084,95052.0,95034.0,0.210449]
[1734906360391,0.00131514,95051.0,95034.0,0.210449]
[1734906360619,0.00131514,95051.0,95033.0,8.56e-05]
[1734906360620,0.1013084,95050.0,95033.0,8.56e-05]
[1734906360791,0.210419,95048.0,95033.0,8.56e-05]
[1734906360977,0.210443,95038.0,95033.0,8.56e-05]
[1734906361175,0.210446,95036.0,95033.0,8.56e-05]
[1734906361384,0.21045,95034.0,95033.0,8.56e-05]
[1734906361593,0.3117584,95034.0,95033.0,8.56e-05]
[1734906362859,0.3127584,95034.0,95033.0,8.56e-05]
[1734906364948,0.1023084,95034.0,95033.0,8.56e-05]
[1734906365153,0.001,95034.0,95033.0,8.56e-05]
[1734906366292,0.00131531,95036.0,95033.0,8.56e-05]
[1734906366488,0.00131531,95036.0,95033.0,0.0050856]
[1734906366696,0.001,95034.0,95033.0,0.0050856]
[1734906366898,0.1013084,95034.0,95033.0,8.56e-05]
[1734906367300,0.1013084,95034.0,95033.0,0.0040856]
[1734906369884,0.10262379,95034.0,95033.0,0.0040856]
[1734906370518,0.10262379,95034.0,95033.0,8.56e-05]
[1734906372291,0.18212379,95034.0,95033.0,8.56e-05]
[1734906372883,0.18312379,95034.0,95033.0,8.56e-05]
[1734906374354,0.1023084,95034.0,95033.0,8.56e-05]
[1734906375195,0.10362392,95034.0,95033.0,8.56e-05]
[1734906375396,0.1023084,95034.0,95033.0,8.56e-05]
[1734906375799,0.1036238,95034.0,95033.0,8.56e-05]
[1734906376200,0.1023084,95034.0,95033.0,8.56e-05]
[1734906378131,0.10362403,95034.0,95033.0,8.56e-05]
[1734906379227,0.10262403,95034.0,95033.0,8.56e-05]
[1734906379444,0.10562403,95034.0,95033.0,8.56e-05]
[1734906380193,0.003,95034.0,95032.0,0.1865396]
[1734906380755,0.0001714,95035.0,95032.0,0.3969946]
[1734906381168,0.003,95034.0,95032.0,0.3969946]
[1734906382285,0.0001714,95035.0,95032.0,0.3969946]
[1734906382666,0.001,95034.0,95032.0,0.4039946]
[1734906383525,0.0001714,95035.0,95032.0,0.3969946]
[1734906383731,0.0011714,95035.0,95032.0,0.4039946]
[1734906384077,0.0001714,95035.0,95032.0,0.3969946]
[1734906384272,0.0001714,95035.0,95034.0,0.21045]
[1734906385138,0.0001714,95035.0,95033.0,0.15]
[1734906385775,0.0001714,95035.0,95034.0,0.21045]
[1734906386466,0.0011714,95035.0,95034.0,0.21045]
[1734906386615,0.0001714,95035.0,95034.0,0.21045]
[1734906387053,0.0011714,95035.0,95034.0,0.007]
[1734906387252,0.0011714,95035.0,95034.0,0.21745]
[1734906387627,0.0011714,95035.0,95034.0,0.007]
[1734906388636,0.1014798,95035.0,95033.0,8.57e-05]
[1734906388878,0.1024798,95035.0,95034.0,0.007]
[1734906389252,0.1014798,95035.0,95033.0,8.57e-05]
[1734906389452,0.1024798,95035.0,95034.0,0.007]
[1734906389858,0.0011714,95035.0,95034.0,0.007]
[1734906390032,0.0011714,95035.0,95032.0,0.0905397]
[1734906390229,0.0001714,95035.0,95034.0,0.21045]
[1734906390533,0.0001714,95035.0,95034.0,0.004]
[1734906390917,0.1014798,95035.0,95034.0,0.004]
[1734906391126,0.10279525,95035.0,95034.0,0.004]
[1734906392373,0.10279525,95035.0,95030.0,8.55e-05]
[1734906392593,0.1013084,95034.0,95032.0,0.001]
[1734906392972,0.1013084,95034.0,95030.0,8.55e-05]
[1734906393320,0.00131546,95033.0,95030.0,8.55e-05]
[1734906393475,0.1013084,95032.0,95030.0,8.55e-05]
[1734906393792,0.00131546,95031.0,95030.0,8.55e-05]
[1734906393953,0.10262386,95031.0,95030.0,8.55e-05]
[1734906395155,0.10262386,95031.0,95017.0,0.210488]
[1734906395334,0.210462,95029.0,95017.0,0.210488]
[1734906395568,0.3117704,95029.0,95016.0,0.01773891]
[1734906395753,0.3117704,95029.0,95017.0,0.210488]
[1734906396713,0.420932,95027.0,95013.0,0.01766832]
[1734906396847,0.21047,95025.0,95016.0,0.001]
[1734906397043,0.10262394,95024.0,95010.0,0.210502]
[1734906397441,0.10262394,95024.0,95017.0,0.001]
[1734906398176,0.210475,95023.0,95017.0,0.001]
[1734906398630,0.210475,95023.0,95010.0,0.210502]
[1734906398850,0.210475,95023.0,95016.0,0.001]
[1734906399309,0.210475,95023.0,95010.0,0.210502]
[1734906399527,0.210475,95023.0,95017.0,0.001]
[1734906399895,0.210475,95023.0,95017.0,8.57e-05]
[1734906400237,0.210475,95023.0,95016.0,0.001]
[1734906400440,0.210484,95019.0,95009.0,0.15]
[1734906400644,0.210477,95022.0,95010.0,0.210504]
[1734906401144,0.210477,95022.0,95011.0,0.15]
[1734906401805,0.210477,95022.0,95017.0,0.001]
[1734906401990,0.210477,95022.0,95009.0,0.15]
[1734906402193,0.3117854,95022.0,95009.0,0.15]
[1734906402397,0.10262394,95021.0,95011.0,0.001]
[1734906402596,0.10262394,95021.0,95003.0,0.15]
[1734906402892,0.210497,95014.0,95002.0,0.00053838]
[1734906403114,0.5223024,95014.0,95002.0,0.00053838]
[1734906405331,0.5223024,95014.0,95000.0,0.210526]
[1734906405569,0.1013084,95014.0,94999.0,0.02312353]